bitfinex-derivatives/quotes_BTCF0:USTF0_20250517
["timestamp","ask_amount","ask_price","bid_price","bid_amount"]
[1747522245249,0.83765046,103100.0,103090.0,0.5672971]
[1747522245457,0.83765046,103100.0,103090.0,0.5039469]
[1747522245643,0.83765046,103100.0,103090.0,0.2960269]
[1747522246647,0.83765046,103100.0,103090.0,0.5039069]
[1747522247858,0.83765046,103100.0,103090.0,0.4730069]
[1747522248558,0.90100066,103100.0,103090.0,0.2551269]
[1747522249163,0.83765046,103100.0,103090.0,0.2551269]
[1747522249361,1.17765046,103100.0,103090.0,0.2551269]
[1747522249661,0.83765046,103100.0,103090.0,0.2551269]
[1747522250158,0.84765046,103100.0,103090.0,0.2551269]
[1747522250358,0.83765046,103100.0,103090.0,0.2551269]
[1747522250558,0.84765046,103100.0,103090.0,0.2551269]
[1747522250752,0.83765046,103100.0,103090.0,0.2551269]
[1747522250954,0.84765046,103100.0,103090.0,0.2551269]
[1747522251153,0.91100066,103100.0,103090.0,0.2551269]
[1747522252266,0.84765046,103100.0,103090.0,0.2551269]
[1747522255065,0.83765046,103100.0,103090.0,0.2551269]
[1747522257063,1.15765046,103100.0,103090.0,0.2551269]
[1747522257268,0.83765046,103100.0,103090.0,0.2551269]
[1747522257566,0.47685046,103100.0,103090.0,0.2551269]
[1747522257767,0.83765046,103100.0,103090.0,0.2551269]
[1747522259055,0.193927,103090.0,103080.0,0.2908942]
[1747522259261,1.0623772,103090.0,103080.0,0.3632942]
[1747522259462,1.0623772,103090.0,103080.0,0.3232942]
[1747522260159,1.2423772,103090.0,103080.0,0.3232942]
[1747522261672,0.8923772,103090.0,103080.0,0.3232942]
[1747522262463,0.8923772,103090.0,103080.0,0.3546942]
[1747522264069,0.829027,103090.0,103080.0,0.4180444]
[1747522264264,0.18,103090.0,103080.0,0.5544946]
[1747522264568,0.5408,103090.0,103080.0,0.4911444]
[1747522264972,0.734727,103090.0,103080.0,0.4911444]
[1747522265169,0.766827,103090.0,103080.0,0.4911444]
[1747522265371,0.57834216,103090.0,103080.0,0.4911444]
[1747522265671,0.77226926,103090.0,103080.0,0.4911444]
[1747522265869,0.54624216,103090.0,103080.0,0.4911444]
[1747522267475,0.74016916,103090.0,103080.0,0.4911444]
[1747522267969,0.18544216,103090.0,103080.0,0.4911444]
[1747522269572,0.18544216,103090.0,103080.0,0.7644946]
[1747522269769,0.18544216,103090.0,103080.0,0.9723346]
[1747522269970,0.18544216,103090.0,103080.0,1.3331346]
[1747522271464,0.18544216,103090.0,103080.0,1.3827867]
[1747522273069,0.18544216,103090.0,103080.0,1.42825294]
[1747522275475,0.18544216,103090.0,103080.0,1.30155254]
[1747522275775,0.18544216,103090.0,103080.0,1.36490274]
[1747522276177,0.18544216,103090.0,103080.0,1.42825294]
[1747522279577,0.18544216,103090.0,103080.0,1.36490274]
[1747522281379,0.18544216,103090.0,103080.0,1.57274274]
[1747522282081,0.18544216,103090.0,103080.0,1.63609294]
[1747522286382,0.18544216,103090.0,103080.0,1.42825294]
[1747522286585,0.18544216,103090.0,103080.0,1.57274274]
[1747522287786,0.18544216,103090.0,103080.0,1.63609294]
[1747522291187,0.00544216,103090.0,103080.0,1.63609294]
[1747522292186,0.18544216,103090.0,103080.0,1.63609294]
[1747522294982,0.18544216,103090.0,103080.0,1.57274274]
[1747522295180,0.24894216,103090.0,103080.0,1.57274274]
[1747522295685,0.24894216,103090.0,103080.0,1.21194274]
[1747522295873,0.24894216,103090.0,103080.0,0.79626274]
[1747522296078,0.24894216,103090.0,103080.0,1.00410274]
[1747522296787,0.28224216,103090.0,103080.0,1.00410274]
[1747522300087,0.28224216,103090.0,103080.0,1.06745294]
[1747522300589,0.28224216,103090.0,103080.0,1.12807409]
[1747522301990,0.28224216,103090.0,103080.0,1.33587409]
[1747522304288,0.28224216,103090.0,103080.0,1.27252389]
[1747522306187,0.28224216,103090.0,103080.0,1.33587409]
[1747522306594,0.28224216,103090.0,103080.0,1.37283576]
[1747522307895,0.28224216,103090.0,103080.0,1.30948556]
[1747522308988,0.21674216,103090.0,103080.0,1.30948556]
[1747522309189,0.21674216,103090.0,103080.0,1.37283576]
[1747522310601,0.18544216,103090.0,103080.0,1.73363576]
[1747522311994,0.18544216,103090.0,103080.0,1.73663576]
[1747522312190,0.00544216,103090.0,103080.0,1.73663576]
[1747522312499,0.00544216,103090.0,103080.0,1.73863576]
[1747522312800,0.00544216,103090.0,103080.0,1.73763576]
[1747522314594,6e-08,103090.0,103080.0,1.80098596]
[1747522314795,6e-08,103090.0,103080.0,1.82822278]
[1747522320317,6e-08,103090.0,103080.0,0.92508238]
[1747522320318,0.36080006,103090.0,103080.0,0.92508238]
[1747522320509,0.36080006,103090.0,103080.0,1.40403258]
[1747522320709,0.45330006,103090.0,103080.0,1.40403258]
[1747522321214,0.63330006,103090.0,103080.0,1.40403258]
[1747522322311,0.82722706,103090.0,103080.0,0.89198238]
[1747522322518,0.89057726,103090.0,103080.0,1.06838238]
[1747522322708,0.89057726,103090.0,103080.0,0.81511614]
[1747522322910,0.89057726,103090.0,103080.0,0.57511614]
[1747522322911,1.25137726,103090.0,103080.0,0.57511614]
[1747522323622,1.18802706,103090.0,103080.0,0.57511614]
[1747522324217,1.18802706,103090.0,103080.0,0.52546404]
[1747522326022,1.18802706,103090.0,103080.0,0.37425587]
[1747522327627,0.46642706,103090.0,103080.0,0.37425587]
[1747522327923,0.63330006,103090.0,103080.0,0.37425587]
[1747522328113,0.63330006,103090.0,103080.0,0.43760607]
[1747522328313,0.82722706,103090.0,103080.0,0.43760607]
[1747522328614,0.82722706,103090.0,103080.0,0.37425587]
[1747522329124,0.82722706,103090.0,103080.0,0.5450942]
[1747522329423,0.89057726,103090.0,103080.0,0.5450942]
[1747522329623,0.82722706,103090.0,103080.0,0.5450942]
[1747522331326,0.82722706,103090.0,103080.0,0.3372942]
[1747522333829,0.82722706,103090.0,103080.0,0.3272942]
[1747522334724,1.22057726,103090.0,103080.0,0.3272942]
[1747522334922,0.90057726,103090.0,103080.0,0.3272942]
[1747522335429,1.27057726,103090.0,103080.0,0.3272942]
[1747522335727,0.83722706,103090.0,103080.0,0.3272942]
[1747522335929,0.82722706,103090.0,103080.0,0.3906444]
[1747522336129,0.82722706,103090.0,103080.0,0.4203444]
[1747522336329,0.82722706,103090.0,103080.0,0.4403444]
[1747522336824,0.82722706,103090.0,103080.0,0.4383444]
[1747522337024,0.63330006,103090.0,103080.0,0.4383444]
[1747522337226,0.63330006,103090.0,103080.0,0.4688444]
[1747522338032,0.82722706,103090.0,103080.0,0.4688444]
[1747522338239,0.82722706,103090.0,103080.0,0.4054942]
[1747522338424,0.82722706,103090.0,103080.0,0.3749942]
[1747522338736,0.89057726,103090.0,103080.0,0.3432942]
[1747522339127,0.82722706,103090.0,103080.0,0.3432942]
[1747522339728,0.82722706,103090.0,103080.0,0.3737942]
[1747522340620,1.19722706,103090.0,103080.0,0.3737942]
[1747522340826,0.82722706,103090.0,103080.0,0.3737942]
[1747522341932,1.20722706,103090.0,103080.0,0.3737942]
[1747522342133,0.82722706,103090.0,103080.0,0.3737942]
[1747522342835,1.15722706,103090.0,103080.0,0.3737942]
[1747522343041,0.82722706,103090.0,103080.0,0.4371444]
[1747522343425,0.82722706,103090.0,103080.0,0.4672444]
[1747522343835,0.82722706,103090.0,103080.0,0.4472444]
[1747522344129,0.82722706,103090.0,103080.0,0.3537942]
[1747522346635,1.14722706,103090.0,103080.0,0.3537942]
[1747522346836,0.82722706,103090.0,103080.0,0.3537942]
[1747522348634,1.22057726,103090.0,103080.0,0.0629]
[1747522348824,1.28392746,103090.0,103080.0,0.0324]
[1747522349024,0.1939458,103080.0,103070.0,0.32306803]
[1747522349230,1.022796,103080.0,103070.0,0.27527763]
[1747522349532,1.7666462,103080.0,103070.0,0.27527763]
[1747522350130,1.883296,103080.0,103070.0,0.27727763]
[1747522351136,1.9466462,103080.0,103070.0,0.27727763]
[1747522351439,1.883296,103080.0,103070.0,0.27727763]
[1747522352045,1.883296,103080.0,103070.0,0.27527763]
[1747522352239,1.5099458,103080.0,103070.0,0.27527763]
[1747522352446,1.893296,103080.0,103070.0,0.27527763]
[1747522353333,1.893296,103080.0,103070.0,0.30537763]
[1747522353734,1.8399458,103080.0,103070.0,0.30537763]
[1747522354035,1.903296,103080.0,103070.0,0.33537763]
[1747522354434,1.583296,103080.0,103070.0,0.30537763]
[1747522355026,1.933296,103080.0,103070.0,0.30537763]
[1747522355226,1.893296,103080.0,103070.0,0.30537763]
[1747522355637,1.89873816,103080.0,103070.0,0.30537763]
[1747522356641,1.89873816,103080.0,103070.0,0.25688833]
[1747522357138,1.96208836,103080.0,103070.0,0.03284033]
[1747522357936,2.11261699,103080.0,103070.0,0.03284033]
[1747522358136,2.11261699,103080.0,103070.0,0.22680493]
[1747522358443,2.11261699,103080.0,103070.0,0.03284033]
[1747522359237,2.11261699,103080.0,103070.0,0.22680493]
[1747522360036,2.04926679,103080.0,103070.0,0.22680493]
[1747522360341,1.72926679,103080.0,103070.0,0.25710493]
[1747522360541,2.01591659,103080.0,103070.0,0.26710493]
[1747522360741,1.66591659,103080.0,103070.0,0.29960493]
[1747522362145,2.10926679,103080.0,103070.0,0.29960493]
[1747522362443,2.10926679,103080.0,103070.0,0.26710493]
[1747522365939,2.17261699,103080.0,103070.0,0.06314033]
[1747522366144,2.17261699,103080.0,103070.0,0.25710503]
[1747522366342,2.39557699,103080.0,103070.0,0.03284033]
[1747522367643,2.26887659,103080.0,103070.0,0.03284033]
[1747522368146,2.39557699,103080.0,103070.0,0.03284033]
[1747522369146,2.39557699,103080.0,103070.0,0.22680503]
[1747522372650,2.39557699,103080.0,103070.0,0.25810503]
[1747522376450,1.88887659,103080.0,103070.0,0.25810503]
[1747522376654,2.28222679,103080.0,103070.0,0.25810503]
[1747522376848,2.05926679,103080.0,103070.0,0.25810503]
[1747522377647,2.05926679,103080.0,103070.0,0.29090503]
[1747522379357,1.66496679,103080.0,103070.0,0.29090503]
[1747522379650,1.66496679,103080.0,103070.0,0.30090503]
[1747522380444,1.37727079,103080.0,103070.0,0.36425523]
[1747522380850,1.01647079,103080.0,103070.0,0.36425523]
[1747522381259,0.83647079,103080.0,103070.0,0.36425523]
[1747522381461,1.19727079,103080.0,103070.0,0.36425523]
[1747522381857,1.19727079,103080.0,103070.0,0.41186921]
[1747522382767,1.19727079,103080.0,103070.0,0.63442921]
[1747522383564,0.83647079,103080.0,103070.0,0.63442921]
[1747522384161,0.15597079,103080.0,103070.0,0.63442921]
[1747522385264,0.15597079,103080.0,103070.0,0.58681523]
[1747522385569,0.00544216,103080.0,103070.0,0.58681523]
[1747522386167,0.18544216,103080.0,103070.0,0.58681523]
[1747522389873,0.18544216,103080.0,103070.0,0.82681523]
[1747522390669,0.18544216,103080.0,103070.0,0.59681523]
[1747522391169,0.00544216,103080.0,103070.0,0.59681523]
[1747522391474,0.00544216,103080.0,103070.0,0.82681523]
[1747522392069,0.00544216,103080.0,103070.0,0.57681523]
[1747522392272,0.00544216,103080.0,103070.0,0.60681523]
[1747522392773,0.00544216,103080.0,103070.0,0.87443013]
[1747522393669,0.00544216,103080.0,103070.0,1.23523013]
[1747522394677,6e-08,103080.0,103070.0,1.64559633]
[1747522395771,6e-08,103080.0,103070.0,1.64759633]
[1747522395971,6e-08,103080.0,103070.0,1.6930238]
[1747522397076,6e-08,103080.0,103070.0,1.6960238]
[1747522397669,6e-08,103080.0,103070.0,1.6980238]
[1747522399478,6e-08,103080.0,103070.0,1.7287038]
[1747522399681,6e-08,103080.0,103070.0,1.78932495]
[1747522401679,6e-08,103080.0,103070.0,1.82628662]
[1747522402878,6e-08,103080.0,103070.0,1.76566547]
[1747522403275,6e-08,103080.0,103070.0,1.76274547]
[1747522404281,6e-08,103080.0,103070.0,1.51274547]
[1747522404471,6e-08,103080.0,103070.0,1.76274547]
[1747522405381,6e-08,103080.0,103070.0,1.51274547]
[1747522406077,6e-08,103080.0,103070.0,1.4757838]
[1747522409381,6e-08,103080.0,103070.0,1.3490834]
[1747522409583,6e-08,103080.0,103070.0,1.4757838]
[1747522409986,6e-08,103080.0,103070.0,1.53640495]
[1747522411886,6e-08,103080.0,103070.0,1.57336662]
[1747522412791,6e-08,103080.0,103070.0,1.35372662]
[1747522413003,6e-08,103080.0,103070.0,1.57204662]
[1747522413383,6e-08,103080.0,103070.0,1.50869642]
[1747522414095,6e-08,103080.0,103070.0,1.29037642]
[1747522414289,6e-08,103080.0,103070.0,1.72725642]
[1747522414585,6e-08,103080.0,103070.0,1.72721642]
[1747522416586,6e-08,103080.0,103070.0,1.77237597]
[1747522417394,6e-08,103080.0,103070.0,1.41157597]
[1747522417692,6e-08,103080.0,103070.0,2.13317597]
[1747522418086,6e-08,103080.0,103070.0,1.69633597]
[1747522418291,6e-08,103080.0,103070.0,2.13269597]
[1747522419089,6e-08,103080.0,103070.0,2.19604617]
[1747522419488,6e-08,103080.0,103070.0,2.09903017]
[1747522420293,6e-08,103080.0,103070.0,2.1483124]
[1747522420694,6e-08,103080.0,103070.0,2.0849622]
[1747522421194,6e-08,103080.0,103070.0,2.0852422]
[1747522421395,6e-08,103080.0,103070.0,2.0851622]
[1747522421898,6e-08,103080.0,103070.0,2.0851222]
[1747522422195,0.21150006,103080.0,103070.0,2.0850822]
[1747522422584,0.21150006,103080.0,103070.0,2.02446105]
[1747522424493,0.18000006,103080.0,103070.0,2.08781125]
[1747522424689,0.0941,103090.0,103080.0,0.1939458]
[1747522424898,0.0617,103090.0,103080.0,0.9964462]
[1747522425086,0.2417,103090.0,103080.0,1.0271462]
[1747522425292,0.2417,103090.0,103080.0,1.4633062]
[1747522425495,0.2115,103090.0,103080.0,1.4633062]
[1747522425694,0.2115,103090.0,103080.0,1.66211235]
[1747522425998,0.2115,103090.0,103080.0,1.66411235]
[1747522426203,0.2115,103090.0,103080.0,1.66611235]
[1747522427296,0.2115,103090.0,103080.0,1.60276215]
[1747522427492,0.2728,103090.0,103080.0,1.66611235]
[1747522428302,0.2728,103090.0,103080.0,1.60276215]
[1747522429603,0.2728,103090.0,103080.0,1.16660215]
[1747522429604,0.27824216,103090.0,103080.0,1.16660215]
[1747522429803,0.27824216,103090.0,103080.0,1.60256215]
[1747522430407,0.27824216,103090.0,103080.0,1.60248215]
[1747522432805,0.27824216,103090.0,103080.0,1.68885239]
[1747522433508,0.21694216,103090.0,103080.0,1.75220259]
[1747522433807,0.18544216,103090.0,103080.0,1.75220259]
[1747522439410,0.18544216,103090.0,103080.0,1.71511458]
[1747522444115,0.18544216,103090.0,103080.0,1.49787458]
[1747522444419,0.18544216,103090.0,103080.0,1.71327458]
[1747522444710,0.18544216,103090.0,103080.0,1.21588438]
[1747522445017,0.21764216,103090.0,103080.0,1.21588438]
[1747522445205,0.27924216,103090.0,103080.0,1.64728438]
[1747522446830,0.27924216,103090.0,103080.0,1.69272716]
[1747522451735,0.27924216,103090.0,103080.0,1.68052724]
[1747522456238,0.27924216,103090.0,103080.0,1.67916724]
[1747522456443,0.27924216,103090.0,103080.0,1.24912724]
[1747522456644,0.27924216,103090.0,103080.0,1.67912724]
[1747522460243,0.27924216,103090.0,103080.0,1.46512724]
[1747522460444,0.27924216,103090.0,103080.0,1.67880724]
[1747522465745,0.27924216,103090.0,103080.0,1.74215744]
[1747522466737,0.27924216,103090.0,103080.0,1.67880724]
[1747522467043,0.18544216,103090.0,103080.0,1.67880724]
[1747522468647,0.18544216,103090.0,103080.0,1.31800724]
[1747522468845,0.18544216,103090.0,103080.0,1.67880724]
[1747522470048,0.18544216,103090.0,103080.0,1.72808947]
[1747522472642,0.21674216,103090.0,103080.0,1.72808947]
[1747522475049,0.18544216,103090.0,103080.0,1.72808947]
[1747522475439,0.18544216,103090.0,103080.0,1.32184669]
[1747522475645,0.18544216,103090.0,103080.0,1.68264669]
[1747522478857,0.18544216,103090.0,103080.0,1.74599689]
[1747522479551,0.18544216,103090.0,103080.0,1.61929649]
[1747522479853,0.18544216,103090.0,103080.0,1.74599689]
[1747522480049,0.18544216,103090.0,103080.0,1.69671466]
[1747522486459,0.18544216,103090.0,103080.0,1.57001426]
[1747522486659,0.18544216,103090.0,103080.0,1.63336446]
[1747522489465,0.18544216,103090.0,103080.0,1.27256446]
[1747522489758,0.18544216,103090.0,103080.0,1.63336446]
[1747522490259,0.18544216,103090.0,103080.0,1.68264669]
[1747522490658,0.18544216,103090.0,103080.0,1.74599689]
[1747522491662,0.18544216,103090.0,103080.0,1.68264669]
[1747522493162,0.18544216,103090.0,103080.0,1.74599689]
[1747522494762,0.18544216,103090.0,103080.0,1.18961649]
[1747522494964,0.28034216,103090.0,103080.0,1.36561418]
[1747522495156,0.28034216,103090.0,103080.0,1.21588438]
[1747522495362,0.28034216,103090.0,103080.0,1.64028438]
[1747522496564,0.28034216,103090.0,103080.0,1.5951362]
[1747522497857,0.28034216,103090.0,103080.0,1.6584864]
[1747522497858,0.18544216,103090.0,103080.0,1.6584864]
[1747522498064,0.51132863,103110.0,103100.0,0.1939082]
[1747522498254,0.60662863,103110.0,103100.0,0.2872584]
[1747522498457,0.60662863,103110.0,103100.0,0.5965384]
[1747522498959,0.4561,103110.0,103100.0,0.65367327]
[1747522499166,0.6371,103110.0,103100.0,0.65367327]
[1747522500067,0.6381,103110.0,103100.0,0.65367327]
[1747522500769,0.8319894,103110.0,103100.0,0.65367327]
[1747522500969,0.8319894,103110.0,103100.0,0.41009327]
[1747522502968,0.8319894,103110.0,103100.0,0.34674307]
[1747522503168,0.8319894,103110.0,103100.0,0.41009327]
[1747522504674,0.83743156,103110.0,103100.0,0.41009327]
[1747522504968,0.99776976,103110.0,103100.0,0.3045231]
[1747522506273,0.93441956,103110.0,103100.0,0.3045231]
[1747522506776,0.93441956,103110.0,103100.0,0.2569082]
[1747522507577,0.83743156,103110.0,103100.0,0.2569082]
[1747522507876,0.83743156,103110.0,103100.0,0.26650001]
[1747522511886,1.17743156,103110.0,103100.0,0.26650001]
[1747522512182,0.98796019,103110.0,103100.0,0.26650001]
[1747522512786,0.98796019,103110.0,103100.0,0.2569082]
[1747522513386,1.36796019,103110.0,103100.0,0.2569082]
[1747522513586,0.98796019,103110.0,103100.0,0.2569082]
[1747522513988,1.31796019,103110.0,103100.0,0.2269082]
[1747522515392,0.1939082,103100.0,103090.0,0.3393516]
[1747522515598,1.0854584,103100.0,103090.0,0.3707516]
[1747522516281,1.2654584,103100.0,103090.0,0.3707516]
[1747522516476,1.2654584,103100.0,103090.0,0.2737921]
[1747522517284,1.4258046,103100.0,103090.0,0.0314]
[1747522517484,1.4258046,103100.0,103080.0,0.37644792]
[1747522517485,0.193927,103090.0,103080.0,0.37644792]
[1747522517686,0.7144772,103090.0,103080.0,0.40784792]
[1747522517893,1.0544772,103090.0,103080.0,0.35936222]
[1747522518085,0.8944772,103090.0,103080.0,0.35936222]
[1747522518284,0.9044772,103090.0,103080.0,0.35936222]
[1747522518594,0.8944772,103090.0,103080.0,0.35936222]
[1747522518795,0.9044772,103090.0,103080.0,0.35936222]
[1747522518992,0.9044772,103090.0,103080.0,0.36136222]
[1747522519387,0.9044772,103090.0,103080.0,0.36336222]
[1747522519894,1.2144772,103090.0,103080.0,0.36336222]
[1747522520195,1.2144772,103090.0,103080.0,0.3263023]
[1747522520895,1.21991936,103090.0,103080.0,0.3263023]
[1747522522896,1.21991936,103090.0,103080.0,0.3534023]
[1747522523200,0.84856916,103090.0,103080.0,0.3534023]
[1747522523886,0.84856916,103090.0,103080.0,0.3846023]
[1747522524595,0.90191936,103090.0,103080.0,0.3846023]
[1747522525191,0.83856916,103090.0,103080.0,0.3846023]
[1747522525401,0.54824216,103090.0,103080.0,0.4479525]
[1747522525602,0.54824216,103090.0,103080.0,0.4679525]
[1747522526104,0.54824216,103090.0,103080.0,0.5313027]
[1747522526298,0.18744216,103090.0,103080.0,0.8921027]
[1747522526500,0.18744216,103090.0,103080.0,0.9521027]
[1747522526801,0.18644216,103090.0,103080.0,0.9521027]
[1747522527197,0.18644216,103090.0,103080.0,1.5429027]
[1747522527601,0.18644216,103090.0,103080.0,1.2929027]
[1747522527909,0.18644216,103090.0,103080.0,1.3229027]
[1747522528614,0.18544216,103090.0,103080.0,1.3229027]
[1747522529799,0.18544216,103090.0,103080.0,0.9621027]
[1747522530010,0.18544216,103090.0,103080.0,1.37075574]
[1747522530306,0.18544216,103090.0,103080.0,1.00995574]
[1747522530602,0.37936916,103090.0,103080.0,0.88325534]
[1747522530806,0.74016916,103090.0,103080.0,0.94660554]
[1747522531007,0.74016916,103090.0,103080.0,0.52580554]
[1747522531400,0.18544216,103090.0,103080.0,0.52580554]
[1747522531902,0.37936916,103090.0,103080.0,0.8987525]
[1747522532106,0.18544216,103090.0,103080.0,0.8987525]
[1747522533609,0.18544216,103090.0,103080.0,0.9621027]
[1747522533906,0.18544216,103090.0,103080.0,1.5429027]
[1747522534299,0.18544216,103090.0,103080.0,1.3229027]
[1747522534910,0.18544216,103090.0,103080.0,1.3249027]
[1747522535109,0.18544216,103090.0,103080.0,1.37478137]
[1747522536117,0.18544216,103090.0,103080.0,1.37078137]
[1747522537913,0.18544216,103090.0,103080.0,1.59078137]
[1747522539705,0.18544216,103090.0,103080.0,1.63622021]
[1747522540708,0.18544216,103090.0,103080.0,1.43622021]
[1747522540915,0.18544216,103090.0,103080.0,1.42630021]
[1747522541109,0.18544216,103090.0,103080.0,1.63618021]
[1747522546119,0.00544216,103090.0,103080.0,1.63618021]
[1747522547411,0.00544216,103090.0,103080.0,1.64018021]
[1747522548218,0.18544216,103090.0,103080.0,1.64018021]
[1747522550812,0.18544216,103090.0,103080.0,1.51247981]
[1747522551009,0.18544216,103090.0,103080.0,1.63918021]
[1747522551210,0.18544216,103090.0,103080.0,1.42930021]
[1747522551509,0.18544216,103090.0,103080.0,1.63918021]
[1747522557423,0.18544216,103090.0,103080.0,1.6543456]
[1747522559021,0.18544216,103090.0,103080.0,1.65451164]
[1747522560423,0.21774216,103090.0,103080.0,1.65451164]
[1747522560920,0.21774216,103090.0,103080.0,1.6999025]
[1747522565226,0.21774216,103090.0,103080.0,1.2801425]
[1747522565432,0.21774216,103090.0,103080.0,1.6364323]
[1747522565623,0.28254216,103090.0,103080.0,0.8559923]
[1747522565821,0.28254216,103090.0,103080.0,1.2756323]
[1747522569431,0.28254216,103090.0,103080.0,1.31269222]
[1747522574527,0.28254216,103090.0,103080.0,1.67349222]
[1747522575029,0.18544216,103090.0,103080.0,1.73684242]
[1747522575622,0.18544216,103090.0,103080.0,1.31720242]
[1747522575823,0.18544216,103090.0,103080.0,1.73680242]
[1747522576937,0.18544216,103090.0,103080.0,1.69141156]
[1747522577139,0.18544216,103090.0,103080.0,1.56471116]
[1747522577337,0.18544216,103090.0,103080.0,1.69141156]
[1747522578242,0.18544216,103090.0,103080.0,1.33061156]
[1747522578442,0.18544216,103090.0,103080.0,1.69141156]
[1747522579448,0.18544216,103090.0,103080.0,1.33061156]
[1747522579634,0.18544216,103090.0,103080.0,1.69141156]
[1747522583946,0.18544216,103090.0,103080.0,1.73683184]
[1747522584940,0.18544216,103090.0,103080.0,1.78611407]
[1747522589645,0.18544216,103090.0,103080.0,1.73683184]
[1747522590154,0.18544216,103090.0,103080.0,1.37603184]
[1747522590353,0.18544216,103090.0,103080.0,1.73683184]
[1747522591351,0.18544216,103090.0,103080.0,1.03953144]
[1747522591554,0.18544216,103090.0,103080.0,1.67608164]
[1747522591746,0.18544216,103090.0,103080.0,1.25388164]
[1747522592249,0.18544216,103090.0,103080.0,1.31723184]
[1747522592554,0.18544216,103090.0,103080.0,1.73939184]
[1747522594251,0.18544216,103090.0,103080.0,1.37859184]
[1747522594458,0.18544216,103090.0,103080.0,1.73939184]
[1747522601470,0.21864216,103090.0,103080.0,1.73939184]
[1747522603984,0.21864216,103090.0,103080.0,1.69397156]
[1747522606686,0.21864216,103090.0,103080.0,1.41826136]
[1747522606888,0.21864216,103090.0,103080.0,1.62926136]
[1747522607289,0.21864216,103090.0,103080.0,1.59220144]
[1747522611389,0.18544216,103090.0,103080.0,1.59220144]
[1747522613591,0.18544216,103090.0,103080.0,1.63756502]
[1747522614888,0.18544216,103090.0,103080.0,1.27676502]
[1747522615090,0.18544216,103090.0,103080.0,1.63756502]
[1747522615892,0.18544216,103090.0,103080.0,1.27676502]
[1747522616082,0.18544216,103090.0,103080.0,1.63756502]
[1747522616691,0.18544216,103090.0,103080.0,1.72815204]
[1747522618295,0.18544216,103090.0,103080.0,1.76521196]
[1747522620691,0.18544216,103090.0,103080.0,1.55421196]
[1747522620893,0.21684216,103090.0,103080.0,1.13238176]
[1747522621193,0.28064216,103090.0,103080.0,1.34222176]
[1747522621393,0.47456916,103090.0,103080.0,0.92026176]
[1747522621596,0.47456916,103090.0,103080.0,1.34222176]
[1747522621799,0.47456916,103090.0,103080.0,1.13238176]
[1747522621998,0.28064216,103090.0,103080.0,1.37445196]
[1747522622698,0.28064216,103090.0,103080.0,1.40605196]
[1747522623197,0.18544216,103090.0,103080.0,1.40605196]
[1747522623502,0.18544216,103090.0,103080.0,1.76685196]
[1747522624092,0.18544216,103090.0,103080.0,1.61566071]
[1747522626100,0.18544216,103090.0,103080.0,1.67901091]
[1747522627489,0.18544216,103090.0,103080.0,1.73961514]
[1747522629199,0.18544216,103090.0,103080.0,1.37881514]
[1747522629406,0.18544216,103090.0,103080.0,2.10041514]
[1747522630007,0.3608,103110.0,103100.0,0.1939082]
[1747522630206,0.5723,103110.0,103100.0,0.2772584]
[1747522630404,0.6054,103110.0,103100.0,0.7934984]
[1747522630702,0.6373,103110.0,103100.0,0.7934984]
[1747522631199,0.6383,103110.0,103100.0,0.5836984]
[1747522631504,0.6393,103110.0,103100.0,0.5836984]
[1747522633706,0.2785,103110.0,103100.0,0.5836984]
[1747522634702,0.6393,103110.0,103100.0,0.5836984]
[1747522635113,0.6393,103110.0,103100.0,0.63174311]
[1747522636608,0.6074,103110.0,103100.0,0.69509331]
[1747522636813,0.182,103110.0,103100.0,1.05589331]
[1747522637106,0.182,103110.0,103100.0,0.99254311]
[1747522637313,0.182,103110.0,103100.0,1.22254311]
[1747522637815,0.181,103110.0,103100.0,1.22254311]
[1747522638003,0.18,103110.0,103100.0,1.22254311]
[1747522639617,0.18544216,103110.0,103100.0,1.22254311]
[1747522640915,0.18544216,103110.0,103100.0,1.28589331]
[1747522642108,0.18544216,103110.0,103100.0,1.28989331]
[1747522646623,0.18544216,103110.0,103100.0,0.92909331]
[1747522646824,0.18544216,103110.0,103100.0,1.28989331]
[1747522649027,0.18544216,103110.0,103100.0,0.92909331]
[1747522649219,0.18544216,103110.0,103100.0,1.28989331]
[1747522649521,0.18544216,103110.0,103100.0,1.28981331]
[1747522652117,0.18544216,103110.0,103100.0,0.92901331]
[1747522652318,0.18544216,103110.0,103100.0,1.28981331]
[1747522653825,0.18544216,103110.0,103100.0,1.35316351]
[1747522654018,0.18544216,103110.0,103100.0,1.28981331]
[1747522656927,0.18544216,103110.0,103100.0,1.45913132]
[1747522657127,0.18544216,103110.0,103100.0,1.39578112]
[1747522660121,0.18544216,103110.0,103100.0,1.43284104]
[1747522660321,0.18544216,103110.0,103100.0,1.49619124]
[1747522660523,0.18544216,103110.0,103100.0,1.43284104]
[1747522663031,0.18544216,103110.0,103100.0,1.46351104]
[1747522665833,0.18544216,103110.0,103100.0,1.10271104]
[1747522666026,0.18544216,103110.0,103100.0,1.46351104]
[1747522666220,0.14917676,103110.0,103100.0,1.46351104]
[1747522666432,0.002,103120.0,103110.0,0.1938893]
[1747522666732,0.002,103120.0,103110.0,1.1711595]
[1747522667133,0.182,103120.0,103110.0,1.1711595]
[1747522667334,0.182,103120.0,103110.0,1.26456779]
[1747522667544,0.2139,103120.0,103110.0,1.47428779]
[1747522667721,0.182,103120.0,103110.0,1.47428779]
[1747522670140,0.18744216,103120.0,103110.0,1.47428779]
[1747522670735,0.18744216,103120.0,103110.0,1.53489202]
[1747522674048,0.18744216,103120.0,103110.0,1.47428779]
[1747522675731,0.001,103140.0,103130.0,0.1938518]
[1747522675934,0.0953,103140.0,103130.0,1.351202]
[1747522676136,0.2753,103140.0,103130.0,1.383202]
[1747522676438,0.2753,103140.0,103130.0,1.39283127]
[1747522676934,0.36126576,103150.0,103140.0,0.193833]
[1747522677134,0.36126576,103150.0,103140.0,1.39508115]
[1747522677331,0.42506576,103150.0,103140.0,2.49492115]
[1747522677529,0.0638,103150.0,103140.0,2.49492115]
[1747522678343,0.2438,103150.0,103140.0,2.49492115]
[1747522678841,0.2438,103150.0,103140.0,2.54296586]
[1747522680241,0.2438,103150.0,103140.0,2.60631606]
[1747522681138,0.2438,103150.0,103140.0,2.54296586]
[1747522681943,0.2438,103150.0,103140.0,2.18216586]
[1747522682139,0.118024,103150.0,103140.0,2.60631606]
[1747522682346,0.0325,103160.0,103150.0,0.1938141]
[1747522682548,0.0956405,103160.0,103150.0,0.9614833]
[1747522683151,0.2756405,103160.0,103150.0,0.9614833]
[1747522683552,0.2776405,103160.0,103150.0,0.9614833]
[1747522685148,0.2796405,103160.0,103150.0,0.9614833]
[1747522685449,0.28508266,103160.0,103150.0,0.9614833]
[1747522685651,0.28508266,103160.0,103150.0,0.96128194]
[1747522686248,0.28508266,103160.0,103150.0,1.38052194]
[1747522687541,0.28508266,103160.0,103150.0,1.38040194]
[1747522687748,0.28508266,103160.0,103150.0,0.89793174]
[1747522688046,0.28508266,103160.0,103150.0,1.38040194]
[1747522688741,0.28508266,103160.0,103150.0,0.60048194]
[1747522689047,0.28508266,103160.0,103150.0,1.01960194]